[Event "*** Titled Tuesday Blitz"]
[Site "Chess.com"]
[Date "2021.04.20"]
[Round "10"]
[White "kidagent"]
[Black "maxip32"]
[Result "1-0"]
[WhiteElo "2352"]
[BlackElo "2498"]
[TimeControl "180+1"]
[EndTime "11:55:59 PDT"]
[Termination "kidagent won on time"]

1. e4 {[%clk 0:03:00.9]} 1... c5 {[%clk 0:02:58.9]} 2. Nf3 {[%clk 0:03:00.8]}
2... d6 {[%clk 0:02:59]} 3. d4 {[%clk 0:03:01.2]} 3... cxd4 {[%clk 0:02:59.9]}
4. Nxd4 {[%clk 0:03:01.7]} 4... Nf6 {[%clk 0:03:00.5]} 5. Nc3 {[%clk 0:03:02.2]}
5... a6 {[%clk 0:03:01]} 6. Bg5 {[%clk 0:03:02.4]} 6... e6 {[%clk 0:03:01.4]} 7.
f4 {[%clk 0:03:02.1]} 7... Nbd7 {[%clk 0:03:02]} 8. Qf3 {[%clk 0:03:01.5]} 8...
h6 {[%clk 0:03:02.5]} 9. Bh4 {[%clk 0:03:01.1]} 9... e5 {[%clk 0:03:03]} 10.
fxe5 {[%clk 0:02:12.8]} 10... Nxe5 {[%clk 0:03:03.9]} 11. Qf2 {[%clk 0:02:03.7]}
11... Be7 {[%clk 0:02:44.8]} 12. O-O-O {[%clk 0:02:00.7]} 12... Nfg4 {[%clk
0:02:27.2]} 13. Bxe7 {[%clk 0:01:58.5]} 13... Nxf2 {[%clk 0:02:26.2]} 14. Bxd8
{[%clk 0:01:58.4]} 14... Kxd8 {[%clk 0:02:27]} 15. Be2 {[%clk 0:01:41.7]} 15...
Nxh1 {[%clk 0:02:26.2]} 16. Rxh1 {[%clk 0:01:40.9]} 16... Be6 {[%clk 0:02:26.9]}
17. Rd1 {[%clk 0:01:31.9]} 17... Kc7 {[%clk 0:02:09.1]} 18. Nf5 {[%clk
0:01:26.5]} 18... Rad8 {[%clk 0:01:58.7]} 19. Nxg7 {[%clk 0:01:21.8]} 19... Rhg8
{[%clk 0:01:58.3]} 20. Nxe6+ {[%clk 0:01:21.2]} 20... fxe6 {[%clk 0:01:58.7]}
21. g3 {[%clk 0:01:17.4]} 21... Rgf8 {[%clk 0:01:58.1]} 22. Bf1 {[%clk
0:00:53.7]} 22... Rf2 {[%clk 0:01:56.6]} 23. Bh3 {[%clk 0:00:53.8]} 23... Re8
{[%clk 0:01:52]} 24. Rd2 {[%clk 0:00:44.7]} 24... Rxd2 {[%clk 0:01:45.6]} 25.
Kxd2 {[%clk 0:00:45.6]} 25... Nf3+ {[%clk 0:01:45.5]} 26. Ke3 {[%clk 0:00:45.1]}
26... Ne5 {[%clk 0:01:33.6]} 27. b3 {[%clk 0:00:43.6]} 27... Kd8 {[%clk
0:01:32.2]} 28. Ne2 {[%clk 0:00:41.5]} 28... Ke7 {[%clk 0:01:23.9]} 29. Nf4
{[%clk 0:00:38.8]} 29... Kf6 {[%clk 0:01:23.9]} 30. c4 {[%clk 0:00:35.6]} 30...
Nf7 {[%clk 0:01:07.9]} 31. Nh5+ {[%clk 0:00:32.8]} 31... Ke7 {[%clk 0:01:07.2]}
32. Ng7 {[%clk 0:00:30.4]} 32... Rh8 {[%clk 0:00:52.5]} 33. Nxe6 {[%clk
0:00:27.6]} 33... Ng5 {[%clk 0:00:51.4]} 34. Nf4 {[%clk 0:00:25.8]} 34... Ra8
{[%clk 0:00:26.8]} 35. Bf5 {[%clk 0:00:24.9]} 35... b5 {[%clk 0:00:26.5]} 36. h4
{[%clk 0:00:21.6]} 36... Nf7 {[%clk 0:00:25.3]} 37. Kd4 {[%clk 0:00:20]} 37...
Ne5 {[%clk 0:00:20.1]} 38. Nd5+ {[%clk 0:00:18.2]} 38... Kf7 {[%clk 0:00:19.6]}
39. g4 {[%clk 0:00:17]} 39... bxc4 {[%clk 0:00:18.6]} 40. bxc4 {[%clk
0:00:16.8]} 40... Rg8 {[%clk 0:00:16.8]} 41. h5 {[%clk 0:00:16.2]} 41... Nxg4
{[%clk 0:00:16.3]} 42. Nf4 {[%clk 0:00:15.3]} 42... Rg7 {[%clk 0:00:13]} 43. Kd5
{[%clk 0:00:14.5]} 43... Ne3+ {[%clk 0:00:11.8]} 44. Kxd6 {[%clk 0:00:14.3]}
44... Nxf5+ {[%clk 0:00:12.7]} 45. exf5 {[%clk 0:00:14.8]} 45... Kf6 {[%clk
0:00:13.2]} 46. Ne6 {[%clk 0:00:13.4]} 46... Rg1 {[%clk 0:00:07.5]} 47. c5
{[%clk 0:00:13.3]} 47... Kxf5 {[%clk 0:00:06.1]} 48. Nd4+ {[%clk 0:00:13.3]}
48... Kf6 {[%clk 0:00:05.9]} 49. c6 {[%clk 0:00:13.2]} 49... Rd1 {[%clk
0:00:04.1]} 50. Kc5 {[%clk 0:00:11]} 50... Rc1+ {[%clk 0:00:03.8]} 51. Kb6
{[%clk 0:00:11.2]} 51... Kg5 {[%clk 0:00:03.6]} 52. c7 {[%clk 0:00:09.3]} 52...
Rb1+ {[%clk 0:00:01.2]} 53. Kxa6 {[%clk 0:00:08.6]} 53... Rc1 {[%clk 0:00:01.8]}
54. Kb7 {[%clk 0:00:08.8]} 1-0

[Event "*** Titled Tuesday Blitz"]
[Site "Chess.com"]
[Date "2021.04.20"]
[Round "10"]
[White "stepakyedael"]
[Black "MFguimaraes"]
[Result "0-1"]
[WhiteElo "2232"]
[BlackElo "2397"]
[TimeControl "180+1"]
[EndTime "11:55:59 PDT"]
[Termination "MFguimaraes won on time"]

1. d4 {[%clk 0:03:00.9]} 1... Nf6 {[%clk 0:02:59.7]} 2. c4 {[%clk 0:02:58.6]}
2... g6 {[%clk 0:02:59.5]} 3. Nc3 {[%clk 0:02:54.4]} 3... d5 {[%clk 0:02:59.5]}
4. Nf3 {[%clk 0:02:53.5]} 4... Bg7 {[%clk 0:02:59.1]} 5. Bf4 {[%clk 0:02:53.3]}
5... O-O {[%clk 0:02:58.3]} 6. e3 {[%clk 0:02:53.6]} 6... b6 {[%clk 0:02:47.5]}
7. Qb3 {[%clk 0:02:48]} 7... dxc4 {[%clk 0:02:43.1]} 8. Bxc4 {[%clk 0:02:46.9]}
8... Nc6 {[%clk 0:02:35.4]} 9. Ng5 {[%clk 0:02:25.7]} 9... e6 {[%clk 0:02:29.4]}
10. Qd1 {[%clk 0:02:23.3]} 10... Na5 {[%clk 0:02:25.6]} 11. Be2 {[%clk 0:02:21]}
11... Nd5 {[%clk 0:02:24.6]} 12. Nxd5 {[%clk 0:02:16.7]} 12... exd5 {[%clk
0:02:25.5]} 13. O-O {[%clk 0:02:09.5]} 13... c5 {[%clk 0:02:15.2]} 14. Rc1
{[%clk 0:01:54]} 14... Bb7 {[%clk 0:02:03.4]} 15. dxc5 {[%clk 0:01:39.7]} 15...
Bxb2 {[%clk 0:02:03.1]} 16. Rb1 {[%clk 0:01:35.7]} 16... Bf6 {[%clk 0:02:00.7]}
17. Nf3 {[%clk 0:01:33.9]} 17... bxc5 {[%clk 0:01:59.8]} 18. Qa4 {[%clk
0:01:28.1]} 18... Bc6 {[%clk 0:01:57.4]} 19. Qa3 {[%clk 0:01:27.6]} 19... Be7
{[%clk 0:01:43.5]} 20. Ne5 {[%clk 0:01:25]} 20... Be8 {[%clk 0:01:42.8]} 21. Bb5
{[%clk 0:01:21.7]} 21... f6 {[%clk 0:01:36.5]} 22. Nf3 {[%clk 0:01:14.6]} 22...
Bxb5 {[%clk 0:01:17.5]} 23. Rxb5 {[%clk 0:01:13.8]} 23... Nc4 {[%clk 0:01:17.5]}
24. Qd3 {[%clk 0:01:10.1]} 24... Qd7 {[%clk 0:00:40.1]} 25. Rfb1 {[%clk
0:01:04.6]} 25... Nb6 {[%clk 0:00:39.2]} 26. a4 {[%clk 0:00:59.8]} 26... Nxa4
{[%clk 0:00:38.5]} 27. Rb7 {[%clk 0:00:58.4]} 27... Qe6 {[%clk 0:00:38.6]} 28.
Rxe7 {[%clk 0:00:50.3]} 28... Qxe7 {[%clk 0:00:36.4]} 29. Qxd5+ {[%clk
0:00:50.4]} 29... Qf7 {[%clk 0:00:34.7]} 30. Qc6 {[%clk 0:00:45.2]} 30... Qa2
{[%clk 0:00:32.6]} 31. Rf1 {[%clk 0:00:41.5]} 31... Rac8 {[%clk 0:00:31.6]} 32.
Qd7 {[%clk 0:00:38.1]} 32... Nb6 {[%clk 0:00:29.5]} 33. Qb7 {[%clk 0:00:36]}
33... Qd5 {[%clk 0:00:26.2]} 34. Qxa7 {[%clk 0:00:32]} 34... Nd7 {[%clk
0:00:26.2]} 35. h3 {[%clk 0:00:23.5]} 35... Kf7 {[%clk 0:00:25.8]} 36. Qa4
{[%clk 0:00:20.9]} 36... Rfd8 {[%clk 0:00:22.6]} 37. Rd1 {[%clk 0:00:20.6]}
37... Qc6 {[%clk 0:00:22.7]} 38. Qc4+ {[%clk 0:00:19.2]} 38... Qe6 {[%clk
0:00:22.4]} 39. Qa4 {[%clk 0:00:07.6]} 39... Nf8 {[%clk 0:00:19.9]} 40. Rxd8
{[%clk 0:00:06.6]} 40... Rxd8 {[%clk 0:00:20]} 41. Qb5 {[%clk 0:00:06.6]} 41...
Rd1+ {[%clk 0:00:18.3]} 42. Kh2 {[%clk 0:00:06.7]} 42... c4 {[%clk 0:00:17.9]}
43. Qa4 {[%clk 0:00:05.4]} 43... Rd7 {[%clk 0:00:16.5]} 44. Qa5 {[%clk
0:00:04.3]} 44... Qd5 {[%clk 0:00:16.4]} 45. Qc3 {[%clk 0:00:04.1]} 45... g5
{[%clk 0:00:16.2]} 46. Bg3 {[%clk 0:00:03.5]} 46... Ng6 {[%clk 0:00:16.4]} 47.
Nd4 {[%clk 0:00:03.9]} 47... Ne5 {[%clk 0:00:16.5]} 48. Qc2 {[%clk 0:00:03.9]}
48... Nd3 {[%clk 0:00:14.9]} 49. Qe2 {[%clk 0:00:02.3]} 49... Qe4 {[%clk
0:00:14.7]} 50. Qh5+ {[%clk 0:00:02.6]} 50... Qg6 {[%clk 0:00:14.1]} 51. Qg4
{[%clk 0:00:02.4]} 51... Re7 {[%clk 0:00:14.3]} 52. Nf5 {[%clk 0:00:01.8]} 52...
h5 {[%clk 0:00:14.7]} 53. Nxe7 {[%clk 0:00:01]} 53... hxg4 {[%clk 0:00:14.3]}
0-1

[Event "*** Titled Tuesday Blitz"]
[Site "Chess.com"]
[Date "2021.04.20"]
[Round "10"]
[White "CM_rui"]
[Black "Agoking701"]
[Result "0-1"]
[WhiteElo "2442"]
[BlackElo "2321"]
[TimeControl "180+1"]
[EndTime "11:56:01 PDT"]
[Termination "Agoking701 won by checkmate"]

1. e4 {[%clk 0:03:00.9]} 1... e5 {[%clk 0:02:59]} 2. Nf3 {[%clk 0:02:59.8]} 2...
Nc6 {[%clk 0:02:58.9]} 3. Bb5 {[%clk 0:02:59.3]} 3... Nf6 {[%clk 0:02:54.8]} 4.
O-O {[%clk 0:02:58.8]} 4... Nxe4 {[%clk 0:02:53.7]} 5. d4 {[%clk 0:02:58.8]}
5... Nd6 {[%clk 0:02:53.3]} 6. Bxc6 {[%clk 0:02:59.2]} 6... dxc6 {[%clk
0:02:54.2]} 7. dxe5 {[%clk 0:03:00.1]} 7... Nf5 {[%clk 0:02:54]} 8. Qxd8+ {[%clk
0:03:00.8]} 8... Kxd8 {[%clk 0:02:54.7]} 9. Bg5+ {[%clk 0:03:01.4]} 9... Ke8
{[%clk 0:02:53.4]} 10. Rd1 {[%clk 0:03:02.1]} 10... Be6 {[%clk 0:02:47.7]} 11.
Nc3 {[%clk 0:03:00.4]} 11... h6 {[%clk 0:02:45.6]} 12. Bf4 {[%clk 0:02:48.7]}
12... Be7 {[%clk 0:02:34.3]} 13. h3 {[%clk 0:02:38.1]} 13... Rd8 {[%clk
0:02:14.4]} 14. Rxd8+ {[%clk 0:02:18.2]} 14... Kxd8 {[%clk 0:02:15.3]} 15. Rd1+
{[%clk 0:02:16.6]} 15... Kc8 {[%clk 0:02:15.5]} 16. Ne4 {[%clk 0:02:07.6]} 16...
b6 {[%clk 0:02:07.4]} 17. b3 {[%clk 0:02:02.9]} 17... Bd5 {[%clk 0:01:58]} 18.
Ned2 {[%clk 0:01:50.8]} 18... g5 {[%clk 0:01:49.8]} 19. Bh2 {[%clk 0:01:46.5]}
19... Rd8 {[%clk 0:01:45.9]} 20. Re1 {[%clk 0:01:35.8]} 20... Bb4 {[%clk
0:01:43]} 21. Rc1 {[%clk 0:00:37.3]} 21... Bxd2 {[%clk 0:01:22.5]} 22. Nxd2
{[%clk 0:00:38.2]} 22... Bxg2 {[%clk 0:01:22.3]} 23. Kxg2 {[%clk 0:00:31.6]}
23... Rxd2 {[%clk 0:01:21.8]} 24. Kf3 {[%clk 0:00:17.8]} 24... Nd4+ {[%clk
0:00:54.6]} 25. Ke3 {[%clk 0:00:13.1]} 25... Rxc2 {[%clk 0:00:54]} 26. Rd1
{[%clk 0:00:12.5]} 26... c5 {[%clk 0:00:45.7]} 27. Re1 {[%clk 0:00:02.9]} 27...
Rxa2 {[%clk 0:00:43.8]} 28. Kd3 {[%clk 0:00:03.1]} 28... Rxf2 {[%clk 0:00:36.3]}
29. Bg1 {[%clk 0:00:03.1]} 29... Rf3+ {[%clk 0:00:36.8]} 30. Kc4 {[%clk
0:00:03.6]} 30... Rxh3 {[%clk 0:00:31.6]} 31. Kd5 {[%clk 0:00:03.3]} 31... Rxb3
{[%clk 0:00:23.5]} 32. Rf1 {[%clk 0:00:01.8]} 32... Rf3 {[%clk 0:00:19.1]} 33.
Ra1 {[%clk 0:00:02.3]} 33... a5 {[%clk 0:00:18.2]} 34. Kc4 {[%clk 0:00:01.9]}
34... Kd7 {[%clk 0:00:17.1]} 35. Kd5 {[%clk 0:00:02.4]} 35... c6+ {[%clk
0:00:14.7]} 36. Ke4 {[%clk 0:00:03.1]} 36... Rf4+ {[%clk 0:00:14.4]} 37. Kd3
{[%clk 0:00:03.7]} 37... Ke6 {[%clk 0:00:14.8]} 38. Be3 {[%clk 0:00:03.6]} 38...
Rf3 {[%clk 0:00:14.4]} 39. Rh1 {[%clk 0:00:04.3]} 39... Nf5 {[%clk 0:00:13.5]}
40. Ke2 {[%clk 0:00:04]} 40... Rxe3+ {[%clk 0:00:13.8]} 41. Kd2 {[%clk
0:00:04.6]} 41... Rxe5 {[%clk 0:00:14.3]} 42. Rf1 {[%clk 0:00:05]} 42... Nd4
{[%clk 0:00:14]} 43. Kc3 {[%clk 0:00:05.4]} 43... f5 {[%clk 0:00:14.5]} 44. Rd1
{[%clk 0:00:05.4]} 44... f4 {[%clk 0:00:14.5]} 45. Rd3 {[%clk 0:00:05.8]} 45...
h5 {[%clk 0:00:14.3]} 46. Rd1 {[%clk 0:00:05.6]} 46... h4 {[%clk 0:00:14.8]} 47.
Kc4 {[%clk 0:00:06]} 47... Kf5 {[%clk 0:00:15.2]} 48. Kd3 {[%clk 0:00:06.3]}
48... b5 {[%clk 0:00:15.7]} 49. Kd2 {[%clk 0:00:06.1]} 49... a4 {[%clk
0:00:16.3]} 50. Kc1 {[%clk 0:00:06.5]} 50... b4 {[%clk 0:00:16.8]} 51. Kb2
{[%clk 0:00:06.9]} 51... a3+ {[%clk 0:00:17.4]} 52. Ka2 {[%clk 0:00:06.8]} 52...
Re2+ {[%clk 0:00:17.5]} 53. Ka1 {[%clk 0:00:07.2]} 53... h3 {[%clk 0:00:18.2]}
54. Rd3 {[%clk 0:00:06.5]} 54... b3 {[%clk 0:00:17]} 55. Rd1 {[%clk 0:00:06.2]}
55... h2 {[%clk 0:00:17.3]} 56. Rb1 {[%clk 0:00:05.1]} 56... Rg2 {[%clk
0:00:17.3]} 57. Rxb3 {[%clk 0:00:02.3]} 57... Nxb3+ {[%clk 0:00:15.9]} 58. Kb1
{[%clk 0:00:03]} 58... a2# {[%clk 0:00:13.9]} 0-1

[Event "*** Titled Tuesday Blitz"]
[Site "Chess.com"]
[Date "2021.04.20"]
[Round "10"]
[White "Hikaru"]
[Black "Zhigalko_Sergei"]
[Result "1/2-1/2"]
[WhiteElo "3175"]
[BlackElo "2944"]
[TimeControl "180+1"]
[EndTime "11:56:06 PDT"]
[Termination "Game drawn by agreement"]

1. e4 {[%clk 0:03:00.9]} 1... c5 {[%clk 0:03:00.2]} 2. Nf3 {[%clk 0:02:59.9]}
2... Nc6 {[%clk 0:03:00.8]} 3. c3 {[%clk 0:02:59.6]} 3... Nf6 {[%clk 0:03:01]}
4. e5 {[%clk 0:02:59.5]} 4... Nd5 {[%clk 0:03:01.4]} 5. Bc4 {[%clk 0:02:59.5]}
5... Nb6 {[%clk 0:03:00.8]} 6. Bb3 {[%clk 0:03:00.1]} 6... g6 {[%clk 0:03:00.9]}
7. O-O {[%clk 0:02:59.4]} 7... Bg7 {[%clk 0:03:01]} 8. d4 {[%clk 0:02:59.5]}
8... cxd4 {[%clk 0:03:01.9]} 9. cxd4 {[%clk 0:03:00]} 9... O-O {[%clk
0:03:02.7]} 10. Bf4 {[%clk 0:02:53.7]} 10... d5 {[%clk 0:02:57.4]} 11. exd6
{[%clk 0:02:54.6]} 11... exd6 {[%clk 0:02:43.9]} 12. h3 {[%clk 0:02:54]} 12...
Bf5 {[%clk 0:02:41.1]} 13. Nc3 {[%clk 0:02:45.9]} 13... a6 {[%clk 0:02:40.7]}
14. a3 {[%clk 0:02:21.5]} 14... Rc8 {[%clk 0:02:40.4]} 15. Ba2 {[%clk
0:02:21.4]} 15... Na5 {[%clk 0:02:29.9]} 16. Re1 {[%clk 0:02:19.1]} 16... h6
{[%clk 0:02:22.1]} 17. Bg3 {[%clk 0:02:12.9]} 17... Nac4 {[%clk 0:02:03.2]} 18.
Re2 {[%clk 0:02:09.7]} 18... Re8 {[%clk 0:02:02.6]} 19. Rc1 {[%clk 0:02:04.7]}
19... Qd7 {[%clk 0:01:52.4]} 20. Nh4 {[%clk 0:01:34.4]} 20... Be6 {[%clk
0:01:25.3]} 21. d5 {[%clk 0:01:29.8]} 21... Bf5 {[%clk 0:01:23.4]} 22. Rxe8+
{[%clk 0:01:26.2]} 22... Rxe8 {[%clk 0:01:21.6]} 23. Nxf5 {[%clk 0:01:26.9]}
23... Qxf5 {[%clk 0:01:21.1]} 24. Na4 {[%clk 0:01:05.5]} 24... Nxb2 {[%clk
0:00:56.9]} 25. Nxb2 {[%clk 0:01:03.4]} 25... Bxb2 {[%clk 0:00:57.8]} 26. Rb1
{[%clk 0:00:58.3]} 26... Bc3 {[%clk 0:00:50.3]} 27. Qb3 {[%clk 0:00:58.4]} 27...
Bd4 {[%clk 0:00:46.7]} 28. Qb4 {[%clk 0:00:42.4]} 28... Bc5 {[%clk 0:00:43]} 29.
Qd2 {[%clk 0:00:42.6]} 29... Nc4 {[%clk 0:00:34.4]} 30. Qc3 {[%clk 0:00:39]}
30... b5 {[%clk 0:00:29.7]} 31. Rd1 {[%clk 0:00:28.3]} 31... Nxa3 {[%clk
0:00:27.3]} 32. Bb3 {[%clk 0:00:26.5]} 32... h5 {[%clk 0:00:26.5]} 33. Qd2
{[%clk 0:00:23]} 33... Nc4 {[%clk 0:00:24.3]} 34. Qa2 {[%clk 0:00:22.2]} 34...
Na3 {[%clk 0:00:21.4]} 35. Kh2 {[%clk 0:00:19.4]} 35... a5 {[%clk 0:00:21.1]}
36. Rc1 {[%clk 0:00:14]} 36... a4 {[%clk 0:00:17.9]} 37. Bd1 {[%clk 0:00:14.4]}
37... Nc4 {[%clk 0:00:13.3]} 38. Bxa4 {[%clk 0:00:14.3]} 38... h4 {[%clk
0:00:08.4]} 39. Bxb5 {[%clk 0:00:09.4]} 39... hxg3+ {[%clk 0:00:08.8]} 40. fxg3
{[%clk 0:00:10.3]} 40... Re3 {[%clk 0:00:04.4]} 41. Qxc4 {[%clk 0:00:03.1]}
41... Re5 {[%clk 0:00:01.7]} 42. Qf4 {[%clk 0:00:03.2]} 42... Qxf4 {[%clk
0:00:01.7]} 43. gxf4 {[%clk 0:00:04.1]} 43... Re4 {[%clk 0:00:02]} 44. Rf1
{[%clk 0:00:04.2]} 44... Be3 {[%clk 0:00:01.9]} 45. Kg3 {[%clk 0:00:04.3]} 45...
Rb4 {[%clk 0:00:02.1]} 46. Bc6 {[%clk 0:00:04.9]} 46... Bc5 {[%clk 0:00:02.3]}
47. f5 {[%clk 0:00:04.4]} 47... g5 {[%clk 0:00:01.7]} 48. f6 {[%clk 0:00:04.9]}
48... Kh7 {[%clk 0:00:02]} 49. Bd7 {[%clk 0:00:03.5]} 49... Kg6 {[%clk
0:00:02.4]} 50. Bf5+ {[%clk 0:00:03.9]} 50... Kxf6 {[%clk 0:00:02.2]} 51. Bg4+
{[%clk 0:00:04.2]} 51... Kg7 {[%clk 0:00:02.2]} 52. Rf5 {[%clk 0:00:02.6]} 52...
f6 {[%clk 0:00:02.5]} 53. Rf1 {[%clk 0:00:02.8]} 53... Bd4 {[%clk 0:00:02.9]}
54. Be6 {[%clk 0:00:03.3]} 54... Be5+ {[%clk 0:00:03.2]} 55. Kf3 {[%clk
0:00:04.2]} 55... Rf4+ {[%clk 0:00:03.6]} 56. Ke2 {[%clk 0:00:04.9]} 56... Rxf1
{[%clk 0:00:03.8]} 57. Kxf1 {[%clk 0:00:05.8]} 57... Bd4 {[%clk 0:00:04.4]} 58.
g4 {[%clk 0:00:06.2]} 1/2-1/2

[Event "*** Titled Tuesday Blitz"]
[Site "Chess.com"]
[Date "2021.04.20"]
[Round "10"]
[White "ural58"]
[Black "Didici"]
[Result "1-0"]
[WhiteElo "2480"]
[BlackElo "2584"]
[TimeControl "180+1"]
[EndTime "11:56:08 PDT"]
[Termination "ural58 won on time"]

1. e4 {[%clk 0:03:00.9]} 1... c5 {[%clk 0:02:59.2]} 2. b3 {[%clk 0:03:00.4]}
2... Nc6 {[%clk 0:02:57.7]} 3. Bb2 {[%clk 0:03:00.1]} 3... d6 {[%clk 0:02:57.4]}
4. Bb5 {[%clk 0:02:59.9]} 4... Bd7 {[%clk 0:02:57.3]} 5. Ne2 {[%clk 0:02:59.7]}
5... Nf6 {[%clk 0:02:56.3]} 6. Bxf6 {[%clk 0:02:57.4]} 6... gxf6 {[%clk
0:02:56.1]} 7. Nbc3 {[%clk 0:02:49]} 7... f5 {[%clk 0:02:55.3]} 8. exf5 {[%clk
0:02:47]} 8... Bxf5 {[%clk 0:02:54.1]} 9. d4 {[%clk 0:02:45.9]} 9... cxd4 {[%clk
0:02:53.6]} 10. Qxd4 {[%clk 0:02:44.7]} 10... Rg8 {[%clk 0:02:52.9]} 11. O-O-O
{[%clk 0:02:38.6]} 11... a6 {[%clk 0:02:49.1]} 12. Bxc6+ {[%clk 0:02:38.2]}
12... bxc6 {[%clk 0:02:49.9]} 13. Ng3 {[%clk 0:02:33.9]} 13... Bd7 {[%clk
0:02:47.8]} 14. Rhe1 {[%clk 0:02:30.4]} 14... Rg6 {[%clk 0:02:39.9]} 15. Qh8
{[%clk 0:02:18.5]} 15... Qa5 {[%clk 0:02:36.1]} 16. Rd3 {[%clk 0:01:50.8]} 16...
O-O-O {[%clk 0:02:28.6]} 17. Qd4 {[%clk 0:01:18]} 17... Bg7 {[%clk 0:02:24.5]}
18. Qe3 {[%clk 0:01:17]} 18... f5 {[%clk 0:02:19.3]} 19. f4 {[%clk 0:01:15.8]}
19... Kb7 {[%clk 0:02:05.5]} 20. Kb2 {[%clk 0:00:58.5]} 20... Re8 {[%clk
0:02:00.4]} 21. Qd2 {[%clk 0:00:50.4]} 21... c5 {[%clk 0:01:47.3]} 22. Kb1
{[%clk 0:00:46.8]} 22... c4 {[%clk 0:01:45.6]} 23. Rde3 {[%clk 0:00:37.7]} 23...
cxb3 {[%clk 0:01:42.3]} 24. cxb3 {[%clk 0:00:37.1]} 24... Rc8 {[%clk 0:01:31.9]}
25. Qd5+ {[%clk 0:00:34.5]} 25... Qxd5 {[%clk 0:01:14.5]} 26. Nxd5 {[%clk
0:00:35.4]} 26... e6 {[%clk 0:01:09.4]} 27. Ne7 {[%clk 0:00:34.3]} 27... Re8
{[%clk 0:01:09]} 28. Nxg6 {[%clk 0:00:34.3]} 28... hxg6 {[%clk 0:01:09.9]} 29.
h4 {[%clk 0:00:28.5]} 29... Bh6 {[%clk 0:01:03.2]} 30. Ne2 {[%clk 0:00:20.1]}
30... Bc6 {[%clk 0:00:55.1]} 31. g3 {[%clk 0:00:20.1]} 31... e5 {[%clk 0:00:48]}
32. Nc3 {[%clk 0:00:17.6]} 32... e4 {[%clk 0:00:40.4]} 33. Rd1 {[%clk
0:00:13.9]} 33... Re6 {[%clk 0:00:36.4]} 34. Ne2 {[%clk 0:00:14]} 34... d5
{[%clk 0:00:31.4]} 35. Nd4 {[%clk 0:00:14.9]} 35... Rd6 {[%clk 0:00:31.3]} 36.
Nxc6 {[%clk 0:00:11.4]} 36... Kxc6 {[%clk 0:00:30.4]} 37. Rc3+ {[%clk
0:00:11.2]} 37... Kb6 {[%clk 0:00:30.8]} 38. b4 {[%clk 0:00:09.9]} 38... d4
{[%clk 0:00:28.8]} 39. Rc5 {[%clk 0:00:10]} 39... Bf8 {[%clk 0:00:28.3]} 40. Kc2
{[%clk 0:00:07.5]} 40... Rd8 {[%clk 0:00:25.5]} 41. Rc4 {[%clk 0:00:06.3]} 41...
d3+ {[%clk 0:00:25.8]} 42. Kd2 {[%clk 0:00:05.1]} 42... Kb5 {[%clk 0:00:24.6]}
43. Rc7 {[%clk 0:00:04.4]} 43... Bxb4+ {[%clk 0:00:24.1]} 44. Ke3 {[%clk
0:00:04.5]} 44... Bc5+ {[%clk 0:00:23.4]} 45. Kd2 {[%clk 0:00:04.8]} 45... e3+
{[%clk 0:00:23.5]} 46. Kc3 {[%clk 0:00:02.8]} 46... e2 {[%clk 0:00:22.9]} 47.
Rb1+ {[%clk 0:00:03.4]} 47... Ka4 {[%clk 0:00:20.4]} 48. Rxc5 {[%clk 0:00:03.1]}
48... e1=Q+ {[%clk 0:00:01.3]} 49. Rxe1 {[%clk 0:00:02.3]} 49... d2 {[%clk
0:00:01.2]} 50. Rd1 {[%clk 0:00:02.6]} 50... a5 {[%clk 0:00:01.7]} 51. Rc4+
{[%clk 0:00:03.1]} 51... Ka3 {[%clk 0:00:01.5]} 52. Rd4 {[%clk 0:00:03.8]} 52...
Re8 {[%clk 0:00:02.4]} 53. Kxd2 {[%clk 0:00:04]} 53... Re3 {[%clk 0:00:03]} 54.
Rd3+ {[%clk 0:00:04.6]} 54... Rxd3+ {[%clk 0:00:02.7]} 55. Kxd3 {[%clk
0:00:05.3]} 1-0

[Event "*** Titled Tuesday Blitz"]
[Site "Chess.com"]
[Date "2021.04.20"]
[Round "10"]
[White "Rodalquilar"]
[Black "amintabatabaei"]
[Result "0-1"]
[WhiteElo "2736"]
[BlackElo "2997"]
[TimeControl "180+1"]
[EndTime "11:56:11 PDT"]
[Termination "amintabatabaei won on time"]

1. d4 {[%clk 0:03:00.9]} 1... Nf6 {[%clk 0:02:59.8]} 2. Bf4 {[%clk 0:03:01.1]}
2... g6 {[%clk 0:02:54.6]} 3. e3 {[%clk 0:03:01.5]} 3... Bg7 {[%clk 0:02:54.2]}
4. Nf3 {[%clk 0:03:02]} 4... O-O {[%clk 0:02:54.4]} 5. Be2 {[%clk 0:03:02.5]}
5... d6 {[%clk 0:02:54.7]} 6. O-O {[%clk 0:03:02.8]} 6... Nh5 {[%clk 0:02:54.4]}
7. Bg5 {[%clk 0:03:02.5]} 7... h6 {[%clk 0:02:54.2]} 8. Bh4 {[%clk 0:03:03]}
8... g5 {[%clk 0:02:54.8]} 9. Nfd2 {[%clk 0:03:03.4]} 9... Nf4 {[%clk
0:02:55.3]} 10. exf4 {[%clk 0:03:03.2]} 10... gxh4 {[%clk 0:02:55.9]} 11. c3
{[%clk 0:03:03]} 11... c5 {[%clk 0:02:56.3]} 12. dxc5 {[%clk 0:02:57.6]} 12...
dxc5 {[%clk 0:02:55]} 13. Nc4 {[%clk 0:02:48.9]} 13... Qc7 {[%clk 0:02:53.3]}
14. Qd2 {[%clk 0:02:39.8]} 14... Nc6 {[%clk 0:02:44.2]} 15. Qe3 {[%clk
0:02:38.1]} 15... b6 {[%clk 0:02:36.3]} 16. Nbd2 {[%clk 0:02:38]} 16... Bf5
{[%clk 0:02:31.5]} 17. Nf3 {[%clk 0:02:37]} 17... h3 {[%clk 0:02:31.9]} 18. g3
{[%clk 0:02:37.2]} 18... Rad8 {[%clk 0:02:32.3]} 19. Rfd1 {[%clk 0:02:36.3]}
19... Rxd1+ {[%clk 0:02:31.7]} 20. Rxd1 {[%clk 0:02:35.8]} 20... Rd8 {[%clk
0:02:32.6]} 21. Rxd8+ {[%clk 0:02:34.7]} 21... Qxd8 {[%clk 0:02:33.5]} 22. Qd2
{[%clk 0:02:34.9]} 22... Qc8 {[%clk 0:02:30.3]} 23. Nfe5 {[%clk 0:02:20.8]}
23... Be6 {[%clk 0:02:19.4]} 24. Bf3 {[%clk 0:01:59.1]} 24... Nxe5 {[%clk
0:01:56.8]} 25. Nxe5 {[%clk 0:01:59.1]} 25... Qc7 {[%clk 0:01:45.4]} 26. Nc6
{[%clk 0:01:30.7]} 26... Bxa2 {[%clk 0:01:37.7]} 27. b4 {[%clk 0:01:30.9]} 27...
cxb4 {[%clk 0:01:10.9]} 28. Qxa2 {[%clk 0:01:29.7]} 28... bxc3 {[%clk
0:01:11.2]} 29. Qe2 {[%clk 0:00:50.2]} 29... Bf6 {[%clk 0:01:00.4]} 30. Be4
{[%clk 0:00:49]} 30... Qd6 {[%clk 0:00:55.7]} 31. Qg4+ {[%clk 0:00:38]} 31...
Bg7 {[%clk 0:00:45.4]} 32. Qxh3 {[%clk 0:00:32.2]} 32... Qd1+ {[%clk 0:00:42]}
33. Kg2 {[%clk 0:00:32.7]} 33... e6 {[%clk 0:00:42.2]} 34. Qh4 {[%clk
0:00:17.9]} 34... c2 {[%clk 0:00:39.6]} 35. Bxc2 {[%clk 0:00:10.3]} 35... Qxc2
{[%clk 0:00:24.4]} 36. Qd8+ {[%clk 0:00:09.8]} 36... Kh7 {[%clk 0:00:22.1]} 37.
Ne7 {[%clk 0:00:10]} 37... h5 {[%clk 0:00:16.6]} 38. Qg8+ {[%clk 0:00:06.3]}
38... Kh6 {[%clk 0:00:17.2]} 39. Qxf7 {[%clk 0:00:06.9]} 39... Qe4+ {[%clk
0:00:15.5]} 40. Kh3 {[%clk 0:00:06.3]} 40... a5 {[%clk 0:00:15]} 41. Kh4 {[%clk
0:00:04.5]} 41... Kh7 {[%clk 0:00:10]} 42. Qxh5+ {[%clk 0:00:04.4]} 42... Bh6
{[%clk 0:00:10.6]} 43. Qf7+ {[%clk 0:00:04.6]} 43... Bg7 {[%clk 0:00:11.3]} 44.
Kh5 {[%clk 0:00:03.8]} 44... Qa8 {[%clk 0:00:03.1]} 45. Qg6+ {[%clk 0:00:02.5]}
45... Kh8 {[%clk 0:00:03.7]} 46. Qf7 {[%clk 0:00:02.3]} 46... Kh7 {[%clk
0:00:04.4]} 47. Qg6+ {[%clk 0:00:02.1]} 47... Kh8 {[%clk 0:00:05]} 48. Qxe6
{[%clk 0:00:02.9]} 48... a4 {[%clk 0:00:04.4]} 49. Ng6+ {[%clk 0:00:03.2]} 49...
Kh7 {[%clk 0:00:05.1]} 50. Qf5 {[%clk 0:00:03.2]} 50... Kg8 {[%clk 0:00:05.1]}
51. Ne7+ {[%clk 0:00:03.4]} 51... Kh8 {[%clk 0:00:05.8]} 52. Kg6 {[%clk
0:00:03.9]} 52... Qe8+ {[%clk 0:00:05.1]} 0-1